bitfinex/quotes_SOLUSD_20260214
["timestamp","ask_amount","ask_price","bid_price","bid_amount"]
[1771081380252,40.03706287,87.419,87.386,0.5]
[1771081380443,2.93405353,87.41,87.381,29.73353731]
[1771081380639,2.93405353,87.4,87.372,0.5]
[1771081380951,57.66,87.399,87.372,0.5]
[1771081381446,2.93405353,87.41,87.372,0.5]
[1771081381653,57.66,87.409,87.372,0.5]
[1771081382457,11.4406004,87.408,87.373,11.44518329]
[1771081382764,2.93405353,87.4,87.374,0.5]
[1771081382943,2.93405353,87.4,87.365,0.5]
[1771081383445,2.93405353,87.39,87.365,0.5]
[1771081385359,11.4430878,87.389,87.365,0.5]
[1771081386441,11.44334969,87.387,87.358,0.5]
[1771081386847,57.68,87.386,87.358,0.5]
[1771081387739,2.93405353,87.38,87.351,0.5]
[1771081387946,57.7,87.379,87.351,0.5]
[1771081388345,11.44452837,87.378,87.351,0.5]
[1771081389357,2.93405353,87.37,87.347,64.64672967]
[1771081389562,2.93405353,87.36,87.336,0.5]
[1771081390264,57.72,87.359,87.336,0.5]
[1771081390641,2.93405353,87.37,87.336,0.5]
[1771081390841,57.72,87.369,87.336,0.5]
[1771081391563,57.72,87.369,87.337,0.5]
[1771081391564,69.16570728,87.369,87.337,0.5]
[1771081392070,28.61132092,87.378,87.341,0.5]
[1771081392071,57.74,87.372,87.341,0.5]
[1771081392956,2.93722248,87.37,87.337,0.5]
[1771081393338,57.76,87.369,87.337,0.5]
[1771081393551,2.93722248,87.36,87.337,0.5]
[1771081394643,11.44701747,87.359,87.337,0.5]
[1771081396157,11.44701747,87.359,87.329,0.5]
[1771081396158,2.93722248,87.35,87.329,0.5]
[1771081396664,57.76,87.358,87.329,0.5]
[1771081397854,2.93722248,87.35,87.329,0.5]
[1771081398062,11.44832797,87.349,87.329,0.5]
[1771081398564,2.93722248,87.34,87.322,0.5]
[1771081399668,11.44832797,87.349,87.314,0.5]
[1771081399669,2.93722248,87.33,87.314,0.5]
[1771081399960,11.45094985,87.329,87.314,0.5]
[1771081400336,2.93722248,87.33,87.314,0.5]
[1771081400565,11.45040644,87.334,87.314,0.5]
[1771081401065,57.8,87.341,87.316,0.5]
[1771081401447,69.24937658,87.341,87.316,0.5]
[1771081401836,57.8,87.341,87.316,0.5]
[1771081402441,57.8,87.341,87.318,0.5]
[1771081402857,11.44950767,87.34,87.318,0.5]
[1771081404964,14.38673015,87.34,87.318,0.5]
[1771081405749,14.38673015,87.34,87.3,2.93722248]
[1771081405750,14.38673015,87.34,87.31,0.5]
[1771081405956,2.93722248,87.33,87.31,0.5]
[1771081406461,57.88,87.329,87.31,0.5]
[1771081407374,57.88,87.345,87.312,0.5]
[1771081407544,57.88,87.351,87.321,0.5]
[1771081410145,40.06456116,87.359,87.323,0.5]
[1771081410352,2.93722248,87.34,87.306,0.5]
[1771081410554,49.6,87.339,87.306,0.5]
[1771081411169,2.93722248,87.34,87.306,0.5]
[1771081411476,11.44976985,87.338,87.306,0.5]
[1771081411971,11.44976985,87.338,87.308,0.5]
[1771081413774,2.93722248,87.32,87.293,0.5]
[1771081413971,57.9,87.319,87.293,0.5]
[1771081414466,40.07419449,87.338,87.293,0.5]
[1771081414467,57.9,87.323,87.301,0.5]
[1771081414664,57.4,87.323,87.301,0.46387526]
[1771081414966,57.9,87.332,87.301,0.46387526]
[1771081415581,57.9,87.332,87.29,0.2]
[1771081415582,0.48780156,87.319,87.29,0.2]
[1771081415872,11.45068761,87.331,87.29,0.2]
[1771081415873,0.48780156,87.309,87.29,0.2]
[1771081416853,2.93722248,87.31,87.29,0.2]
[1771081419176,11.45334773,87.311,87.29,0.2]
[1771081419356,2.93722248,87.31,87.29,0.2]
[1771081419769,0.48780156,87.309,87.29,0.2]
[1771081421264,11.45370412,87.308,87.29,0.2]
[1771081423061,11.45315385,87.313,87.291,0.4522639]
[1771081423581,11.45315385,87.313,87.292,22.90295312]
[1771081423779,11.45315385,87.313,87.293,0.4522639]
[1771081423977,58.0,87.312,87.293,0.4522639]
[1771081424281,58.02,87.315,87.294,0.4522639]
[1771081424664,11.45226124,87.319,87.294,0.4522639]
[1771081424987,58.02,87.318,87.294,0.4522639]
[1771081427263,58.1,87.317,87.294,0.4522639]
[1771081427463,58.1,87.316,87.294,0.4522639]
[1771081428478,2.93722248,87.31,87.292,22.45068922]
[1771081431067,11.45357294,87.309,87.292,22.45068922]
[1771081432372,11.950537,87.309,87.292,22.45068922]
[1771081433193,11.45303869,87.314,87.293,0.4522639]
[1771081433485,58.2,87.313,87.293,0.4522639]
[1771081434191,11.45226124,87.319,87.293,0.4522639]
[1771081434391,58.22,87.318,87.293,0.4522639]
[1771081434599,11.45226124,87.319,87.293,0.4522639]
[1771081434600,58.22,87.317,87.293,0.4522639]
[1771081436488,11.9492253,87.319,87.293,0.4522639]
[1771081436684,58.28,87.318,87.293,0.4522639]
[1771081436885,58.77696406,87.318,87.293,0.4522639]
[1771081437470,0.49696406,87.317,87.293,0.4522639]
[1771081438096,58.32,87.316,87.293,0.4522639]
[1771081438394,11.45265472,87.316,87.293,0.4522639]
[1771081438595,58.32,87.315,87.293,0.4522639]
[1771081438896,11.45265472,87.316,87.293,0.4522639]
[1771081439091,58.32,87.315,87.293,0.4522639]
[1771081439395,11.45265472,87.316,87.293,0.4522639]
[1771081439599,58.34,87.315,87.293,0.4522639]
[1771081440300,58.36,87.314,87.293,0.4522639]
[1771081440500,11.45304822,87.313,87.293,0.4522639]
[1771081440797,58.38,87.312,87.293,0.4522639]
[1771081441191,2.93722248,87.31,87.293,0.4522639]
[1771081441398,58.38,87.309,87.293,0.4522639]
[1771081441778,0.45626362,87.308,87.292,22.45068922]
[1771081442192,58.38,87.309,87.292,22.45068922]
[1771081442594,58.4,87.308,87.292,22.45068922]
[1771081442791,58.4,87.307,87.292,22.45068922]
[1771081443487,58.42,87.306,87.292,22.45068922]
[1771081443684,58.42,87.305,87.292,22.45068922]
[1771081444005,2.93722248,87.3,87.292,22.45068922]
[1771081444206,0.45626362,87.303,87.292,22.45068922]
[1771081444999,0.45626362,87.309,87.292,22.45068922]
[1771081445207,69.89370412,87.308,87.292,22.45068922]
[1771081445382,0.45626362,87.307,87.292,22.45068922]
[1771081446004,58.44,87.306,87.292,21.95068922]
[1771081449292,2.93722248,87.3,87.27,0.2]
[1771081449491,58.48,87.299,87.271,0.5]
[1771081450704,58.0,87.298,87.271,0.49893649]
[1771081451609,58.0,87.298,87.273,0.49893649]
[1771081451904,58.02,87.308,87.281,0.49893649]
[1771081452093,0.45626362,87.307,87.281,0.49893649]
[1771081453191,0.45626362,87.307,87.283,0.49893649]
[1771081455320,0.45626362,87.306,87.284,11.45685348]
[1771081457513,0.45626362,87.306,87.284,0.49893649]
[1771081458013,0.45626362,87.304,87.284,0.49893649]
[1771081458210,58.58,87.303,87.272,0.49893649]
[1771081458513,0.45626362,87.302,87.272,0.49893649]
[1771081459628,0.45626362,87.299,87.273,11.45829752]
[1771081460196,0.45626362,87.299,87.274,0.49893649]
[1771081461814,11.45501615,87.298,87.276,0.49893649]
[1771081462113,0.45626362,87.289,87.235,0.49893649]
[1771081462415,2.94112731,87.26,87.237,0.49893649]
[1771081462796,2.94112731,87.25,87.237,0.49893649]
[1771081463007,58.62,87.259,87.237,0.49893649]
[1771081464104,58.62,87.258,87.237,0.49893649]
[1771081464496,58.62,87.257,87.237,0.49893649]
[1771081464897,59.07626362,87.257,87.237,0.49893649]
[1771081466802,11.91679355,87.256,87.237,0.49893649]
[1771081468022,2.94112731,87.25,87.237,0.49893649]
[1771081469025,11.91679355,87.256,87.237,0.49893649]
[1771081469618,0.45626362,87.273,87.237,0.49893649]
[1771081469915,58.74,87.272,87.237,0.49893649]
[1771081470315,2.94112731,87.27,87.237,0.49893649]
[1771081470504,2.94112731,87.27,87.239,0.49893649]
[1771081471308,14.39990676,87.27,87.241,0.45751628]
[1771081471514,11.91320254,87.279,87.241,0.45751628]
[1771081471719,0.45565551,87.277,87.241,0.45751628]
[1771081471918,59.21565551,87.276,87.241,0.45751628]
[1771081472121,0.45565551,87.275,87.241,0.45751628]
[1771081472422,0.45565551,87.269,87.241,0.45751628]
[1771081472602,58.78,87.268,87.241,0.45751628]
[1771081473228,0.45565551,87.267,87.241,0.45751628]
[1771081473719,40.10132159,87.279,87.23,31.60067805]
[1771081473720,58.8,87.266,87.243,0.45751628]
[1771081474105,11.45540981,87.295,87.251,0.45751628]
[1771081474306,34.38249815,87.296,87.271,0.45751628]
[1771081474307,93.20249815,87.296,87.271,0.45751628]
[1771081475338,93.20249815,87.296,87.243,57.92]
[1771081475339,0.45565551,87.289,87.263,0.45751628]
[1771081475513,0.45565551,87.279,87.251,0.45751628]
[1771081475718,58.82,87.285,87.253,0.45751628]
[1771081476221,11.45492412,87.299,87.261,0.45751628]
[1771081476417,58.82,87.295,87.261,0.45751628]
[1771081477145,58.84,87.294,87.271,0.45751628]
[1771081478632,0.45565551,87.318,87.281,0.45751628]
[1771081478926,0.45565551,87.316,87.281,0.45751628]
[1771081480959,0.45565551,87.316,87.282,11.45711601]
[1771081481436,0.46396289,87.309,87.282,11.90787442]
[1771081481642,58.88,87.308,87.283,0.45075841]
[1771081482221,58.88,87.312,87.283,0.45075841]
[1771081483133,58.88,87.312,87.291,0.45075841]
[1771081483723,11.91438909,87.333,87.301,0.45075841]
[1771081483929,58.9,87.332,87.301,0.45075841]
[1771081484124,0.46396289,87.331,87.301,0.45075841]
[1771081484328,0.46396289,87.338,87.301,0.45075841]
[1771081484541,0.46396289,87.338,87.311,0.45075841]
[1771081485335,0.46396289,87.338,87.313,0.45075841]
[1771081485824,0.46396289,87.346,87.321,0.45075841]
[1771081486025,0.46396289,87.365,87.321,0.45075841]
[1771081486239,0.46396289,87.365,87.331,0.45075841]
[1771081487146,0.46396289,87.349,87.313,0.45075841]
[1771081487546,0.46396289,87.349,87.321,0.45075841]
[1771081487927,0.46396289,87.356,87.321,0.45075841]
[1771081488127,0.46396289,87.356,87.33,2.94112731]
[1771081488349,0.46396289,87.356,87.33,3.39188572]
[1771081489251,0.46396289,87.356,87.33,0.45075841]
[1771081489847,0.46396289,87.356,87.331,11.45068761]
[1771081490334,11.44711273,87.359,87.332,0.45075841]
[1771081490759,0.46396289,87.358,87.332,0.45075841]
[1771081490964,59.32396289,87.373,87.341,0.45075841]
[1771081491137,0.46396289,87.373,87.341,0.45075841]
[1771081492462,11.44531428,87.372,87.343,0.45075841]
[1771081493244,0.46396289,87.359,87.321,11.90275735]
[1771081493446,0.46396289,87.359,87.323,0.45075841]
[1771081495060,0.46396289,87.357,87.324,11.90236392]
[1771081496956,0.46396289,87.347,87.312,11.4531794]
[1771081497477,0.46396289,87.347,87.312,11.90393781]
[1771081497641,0.46396289,87.339,87.312,11.90393781]
[1771081498265,0.46396289,87.339,87.314,11.45291705]
[1771081498449,0.46396289,87.339,87.315,0.45075841]
[1771081500846,0.46396289,87.346,87.317,0.45075841]
[1771081501065,0.46396289,87.354,87.321,0.45075841]
[1771081501970,0.49570728,87.352,87.321,0.45075841]
[1771081503440,2.94112731,87.35,87.321,11.45196271]
[1771081503640,0.49570728,87.349,87.321,11.45196271]
[1771081506550,0.49570728,87.347,87.321,11.45196271]
[1771081507870,11.44790818,87.353,87.322,0.47049974]
[1771081508044,0.49570728,87.352,87.322,0.47049974]
[1771081509062,0.49570728,87.352,87.323,0.47049974]
[1771081509260,0.49570728,87.351,87.323,0.47049974]
[1771081510663,0.49570728,87.339,87.304,58.55049974]
[1771081510849,0.49570728,87.339,87.305,0.47049974]
[1771081511555,0.49570728,87.339,87.308,11.45366994]
[1771081511751,0.49570728,87.339,87.309,0.47049974]
[1771081512469,11.44976985,87.338,87.31,11.45344175]
[1771081512667,0.49570728,87.337,87.31,11.45344175]
[1771081515373,0.49570728,87.337,87.31,0.47049974]
[1771081515681,11.44927697,87.342,87.311,0.47049974]
[1771081516086,11.44874215,87.346,87.311,0.47049974]
[1771081516374,11.44874215,87.346,87.32,2.93929771]
[1771081516558,0.49570728,87.345,87.321,0.47049974]
[1771081518368,0.49570728,87.343,87.321,0.47049974]
[1771081518554,0.49570728,87.343,87.322,11.45186779]
[1771081519372,0.49570728,87.343,87.322,11.92236753]
[1771081519967,0.49570728,87.343,87.322,11.45186779]
[1771081520785,0.49570728,87.341,87.317,11.45247053]
[1771081521382,0.49570728,87.341,87.318,0.47049974]
[1771081524083,0.49570728,87.341,87.312,11.92367914]
[1771081524285,31.55668524,87.36,87.321,0.47049974]
[1771081524286,0.49570728,87.349,87.321,0.47049974]
[1771081526183,0.49570728,87.349,87.314,0.47049974]
[1771081526582,0.49570728,87.347,87.313,61.9]
[1771081526765,0.49570728,87.347,87.315,0.47049974]
[1771081527487,0.49570728,87.347,87.313,61.9]
[1771081528485,0.49570728,87.339,87.313,61.9]
[1771081528784,0.49570728,87.339,87.306,11.45393412]
[1771081529177,0.49570728,87.339,87.301,11.45450811]
[1771081529891,0.49570728,87.329,87.297,11.45513282]
[1771081530094,0.49570728,87.319,87.291,11.45582596]
[1771081530882,0.49570728,87.317,87.291,11.45582596]
[1771081531085,0.49570728,87.317,87.291,11.9263257]
[1771081531266,0.49570728,87.317,87.292,0.47353684]
[1771081533676,0.49272759,87.315,87.287,11.45645329]
[1771081534387,0.49272759,87.315,87.287,11.92999013]
[1771081535187,0.49272759,87.313,87.285,58.58]
[1771081536266,0.49272759,87.309,87.285,58.58]
[1771081536464,0.49272759,87.307,87.273,0.47353684]
[1771081536668,0.49272759,87.299,87.273,0.47353684]
[1771081536880,0.49272759,87.299,87.273,11.93180976]
[1771081537080,40.08796443,87.308,87.281,0.47353684]
[1771081537081,0.49272759,87.308,87.281,0.47353684]
[1771081537672,2.93929771,87.32,87.276,11.45790366]
[1771081537673,2.93929771,87.33,87.291,0.47353684]
[1771081537873,57.2433854,87.347,87.301,0.47353684]
[1771081537874,2.93929771,87.34,87.301,0.47353684]
[1771081539287,40.07373566,87.339,87.303,0.47353684]
[1771081539492,40.07373566,87.339,87.311,0.47353684]
[1771081539694,0.49272759,87.338,87.311,0.47353684]
[1771081540371,0.49272759,87.345,87.311,0.47353684]
[1771081540785,0.46264195,87.343,87.313,0.48377153]
[1771081541371,0.46264195,87.343,87.321,0.48377153]
[1771081543092,0.46264195,87.339,87.304,0.48377153]
[1771081543778,0.46264195,87.339,87.31,2.93929771]
[1771081543997,0.46264195,87.339,87.311,0.48377153]
[1771081546394,0.46264195,87.338,87.313,0.48377153]
[1771081547397,0.46264195,87.329,87.295,0.48377153]
[1771081547593,0.46264195,87.329,87.298,0.48377153]
[1771081548289,0.46264195,87.328,87.301,0.48377153]
[1771081550294,0.46264195,87.326,87.301,0.48377153]
[1771081550597,0.46264195,87.326,87.302,11.4544913]
[1771081552389,2.93929771,87.34,87.302,0.48377153]
[1771081552390,11.45069596,87.331,87.302,0.48377153]
[1771081552597,11.45006282,87.336,87.311,0.48377153]
[1771081553101,11.91270477,87.336,87.311,0.48377153]
[1771081553288,0.46264195,87.344,87.311,0.48377153]
[1771081553482,0.46264195,87.339,87.301,0.48377153]
[1771081555703,0.46264195,87.329,87.298,11.45501295]
[1771081556084,0.46264195,87.337,87.301,0.48377153]
[1771081556509,0.46264195,87.329,87.301,0.48377153]
[1771081558206,0.46264195,87.327,87.295,0.48377153]
[1771081558509,0.46264195,87.309,87.275,78.03187694]
[1771081558807,0.46264195,87.309,87.275,78.51564847]
[1771081559007,0.46264195,87.309,87.276,0.48377153]
[1771081560507,0.46264195,87.307,87.276,0.48377153]
[1771081563411,0.47868487,87.305,87.276,0.48377153]
[1771081563608,0.47868487,87.299,87.275,66.57393543]
[1771081563997,0.47868487,87.299,87.275,67.04932314]
[1771081564322,0.47868487,87.299,87.277,0.47538771]
[1771081565819,0.47868487,87.298,87.277,0.47538771]
[1771081568712,0.47868487,87.296,87.275,66.57393543]
[1771081569805,11.93319583,87.302,87.277,0.47538771]
[1771081570420,0.47868487,87.301,87.277,0.47538771]
[1771081571517,11.45475372,87.3,87.277,0.47538771]
[1771081571920,0.47868487,87.299,87.277,0.47538771]
[1771081572422,0.47868487,87.299,87.279,0.47538771]
[1771081573930,0.47868487,87.297,87.275,66.57393543]
[1771081575005,0.47868487,87.289,87.254,11.93616935]
[1771081575230,40.09255652,87.298,87.243,11.93758528]
[1771081575231,0.47868487,87.269,87.243,11.93758528]
[1771081575628,0.47868487,87.259,87.229,0.47538771]
[1771081575811,0.47868487,87.249,87.223,0.47538771]
[1771081576013,0.47868487,87.249,87.222,0.90190409]
[1771081576414,0.47868487,87.249,87.223,0.47538771]
[1771081576609,0.47868487,87.257,87.224,0.47538771]
[1771081576826,11.45971036,87.263,87.231,0.47538771]
[1771081577018,11.45971036,87.263,87.232,49.82]
[1771081577335,0.47868487,87.272,87.241,0.47538771]
[1771081577637,0.47868487,87.269,87.241,0.47538771]
[1771081578041,0.47868487,87.269,87.243,0.47538771]
[1771081578742,2.9416122,87.28,87.243,0.47538771]
[1771081579032,0.47868487,87.281,87.251,0.47538771]
[1771081579221,0.47868487,87.288,87.251,0.47538771]
[1771081579538,11.45645972,87.287,87.251,0.47538771]
[1771081580224,0.47868487,87.288,87.261,0.47538771]
[1771081580535,0.47868487,87.291,87.261,0.47538771]
[1771081583432,0.47868487,87.291,87.263,0.47538771]
[1771081583813,0.47868487,87.298,87.271,0.47538771]
[1771081584437,11.45509549,87.298,87.271,0.47538771]
[1771081584640,11.93378036,87.298,87.271,0.47538771]
[1771081584841,0.47868487,87.297,87.271,0.47538771]
[1771081585843,0.47868487,87.295,87.272,11.45842882]
[1771081586139,0.47868487,87.295,87.272,11.93381653]
[1771081587139,0.47868487,87.301,87.273,0.47538771]
[1771081587521,2.9416122,87.3,87.273,0.47538771]
[1771081587723,0.47868487,87.299,87.272,11.45842882]
[1771081587917,0.47868487,87.299,87.262,28.64935481]
[1771081587918,0.47868487,87.297,87.268,11.93434173]
[1771081588118,0.47868487,87.297,87.269,0.47538771]
[1771081588737,0.47868487,87.302,87.271,0.47538771]
[1771081589641,0.47868487,87.302,87.273,0.47538771]
[1771081591239,11.45462251,87.301,87.273,0.47538771]
[1771081591740,0.49596574,87.3,87.273,0.47538771]
[1771081593023,0.49596574,87.298,87.272,11.45842882]
[1771081593244,0.49596574,87.298,87.264,11.45947928]
[1771081593442,2.9416122,87.29,87.259,11.46000876]
[1771081593643,0.49596574,87.289,87.259,11.46000876]
[1771081593844,0.49596574,87.289,87.26,0.48909489]
[1771081594749,0.49596574,87.289,87.246,0.48909489]
[1771081594750,2.9416122,87.28,87.246,0.48909489]
[1771081595046,40.09209726,87.299,87.235,28.65793704]
[1771081595047,0.49596574,87.267,87.239,11.46276321]
[1771081596624,0.49596574,87.267,87.239,0.48909489]
[1771081597435,0.49596574,87.259,87.232,0.48909489]
[1771081597636,0.49596574,87.259,87.231,11.46381446]
[1771081598149,0.49596574,87.259,87.232,0.48909489]
[1771081599228,0.49596574,87.257,87.232,0.48909489]
[1771081599428,0.49596574,87.257,87.234,0.48909489]
[1771081600539,0.49596574,87.257,87.235,11.92671297]
[1771081600745,0.49596574,87.257,87.236,0.46342416]
[1771081601854,11.46052993,87.256,87.236,0.46342416]
[1771081602030,0.45085853,87.255,87.231,11.46380879]
[1771081602832,0.45085853,87.255,87.231,0.46342416]
[1771081603554,0.45085853,87.253,87.231,0.46342416]
[1771081603753,0.45085853,87.258,87.225,0.46342416]
[1771081604950,0.45085853,87.256,87.227,0.46342416]
[1771081606941,0.45085853,87.262,87.228,11.46420874]
[1771081607142,0.45085853,87.262,87.229,0.46342416]
[1771081608958,0.45085853,87.259,87.229,0.46342416]
[1771081609155,0.45085853,87.257,87.229,0.46342416]
[1771081610261,0.45085853,87.257,87.23,11.46394589]
[1771081610439,0.45085853,87.257,87.231,0.46342416]
[1771081611356,0.45085853,87.255,87.231,0.46342416]
[1771081612552,0.45085853,87.255,87.232,0.46342416]
[1771081614250,11.46079262,87.254,87.232,0.46342416]
[1771081614454,11.91165115,87.254,87.232,0.46342416]
[1771081614958,11.46079262,87.254,87.232,0.46342416]
[1771081615161,0.45085853,87.253,87.232,0.46342416]
[1771081616757,0.45085853,87.251,87.224,11.46464607]
[1771081616967,0.45085853,87.251,87.225,0.46342416]
[1771081617347,0.45085853,87.249,87.223,11.85964038]
[1771081617749,0.45085853,87.249,87.225,0.46342416]
[1771081620766,0.45085853,87.263,87.227,0.46342416]
[1771081620963,0.45085853,87.263,87.231,0.46342416]
[1771081622169,0.45085853,87.263,87.233,0.45979915]
[1771081624077,0.4743953,87.278,87.241,0.45979915]
[1771081627260,0.4743953,87.276,87.243,0.45979915]
[1771081627767,0.4743953,87.283,87.251,0.45979915]
[1771081629974,0.4743953,87.281,87.252,11.92085448]
[1771081632668,0.4743953,87.279,87.252,11.46105533]
[1771081632873,0.4743953,87.279,87.253,0.45979915]
[1771081634378,0.4743953,87.279,87.254,11.46079262]
[1771081634573,0.4743953,87.279,87.255,0.45979915]
[1771081634774,0.4743953,87.285,87.255,0.45979915]
[1771081635983,0.4743953,87.283,87.256,11.92032908]
[1771081638277,0.4743953,87.283,87.257,0.45979915]
[1771081639283,0.4743953,87.281,87.257,0.45979915]
[1771081640578,0.4743953,87.296,87.261,0.45979915]
[1771081641475,0.4743953,87.289,87.256,0.45979915]
[1771081642270,0.4743953,87.287,87.256,0.45979915]
[1771081642470,0.4743953,87.287,87.258,0.45979915]
[1771081644389,0.4743953,87.285,87.257,11.46039859]
[1771081645887,11.45685348,87.284,87.256,0.45979915]
[1771081646092,0.4743953,87.283,87.256,0.45979915]
[1771081646780,0.4743953,87.279,87.242,11.92216819]
[1771081646968,0.4743953,87.269,87.242,11.46236904]
[1771081647174,0.4743953,87.269,87.243,0.45979915]
[1771081648487,0.4743953,87.276,87.245,0.45979915]
[1771081649486,11.45803494,87.275,87.246,11.46184352]
[1771081649790,0.4743953,87.274,87.247,0.45979915]
[1771081650692,0.4743953,87.283,87.25,2.94252381]
[1771081650989,0.4743953,87.283,87.251,0.45979915]
[1771081651292,11.45659787,87.286,87.251,0.45979915]
[1771081651591,0.4731914,87.289,87.261,0.48618234]
[1771081651772,0.4731914,87.288,87.253,0.48618234]
[1771081655980,0.4731914,87.288,87.254,11.46079262]
[1771081656295,0.4731914,87.288,87.255,0.48618234]
[1771081657081,0.4731914,87.309,87.271,0.48618234]
[1771081657280,0.4731914,87.306,87.271,0.48618234]
[1771081657486,0.4731914,87.299,87.271,0.48618234]
[1771081658498,0.4731914,87.297,87.271,11.94466448]
[1771081660105,2.94252381,87.31,87.272,0.48618234]
[1771081660309,0.4731914,87.306,87.272,0.48618234]
[1771081660484,0.4731914,87.306,87.274,0.49907831]
[1771081660678,0.47545789,87.319,87.274,0.49907831]
[1771081660880,0.47545789,87.315,87.274,0.49907831]
[1771081661108,0.47545789,87.315,87.281,0.49907831]
[1771081663399,28.62720257,87.33,87.28,2.94252381]
[1771081663400,11.92745856,87.321,87.283,0.49907831]
[1771081663604,11.92745856,87.321,87.282,100.13990604]
[1771081663605,11.92745856,87.321,87.291,0.49907831]
[1771081665405,11.92745856,87.321,87.293,0.49907831]
[1771081666105,0.47545789,87.321,87.293,0.49907831]
[1771081667707,0.47545789,87.321,87.295,0.49907831]
[1771081669486,0.47545789,87.319,87.295,0.49907831]
[1771081669687,0.47545789,87.317,87.291,11.45593474]
[1771081670209,0.47545789,87.317,87.291,11.95501305]
[1771081675021,0.47545789,87.317,87.292,0.49907831]
[1771081675804,11.45265472,87.316,87.292,0.49907831]
[1771081676121,0.47545789,87.315,87.292,0.49907831]
[1771081677309,0.47545789,87.315,87.291,11.45593474]
[1771081677706,0.47545789,87.315,87.28,2.94252381]
[1771081677707,0.47545789,87.309,87.266,0.49907831]
[1771081677902,0.47545789,87.309,87.268,0.49907831]
[1771081678508,0.47545789,87.309,87.271,0.49907831]
[1771081680627,0.47545789,87.307,87.273,0.49907831]
[1771081681618,0.46973428,87.335,87.301,0.49095097]
[1771081682629,11.45029427,87.334,87.301,0.49095097]
[1771081682816,0.46973428,87.333,87.301,0.49095097]
[1771081683018,0.46973428,87.319,87.295,0.49095097]
[1771081683216,0.46973428,87.329,87.295,0.49095097]
[1771081685222,11.91918148,87.341,87.301,0.49095097]
[1771081685435,11.91918148,87.341,87.311,0.49095097]
[1771081686128,2.94252381,87.38,87.347,0.49095097]
[1771081686426,2.94311871,87.373,87.317,0.49095097]
[1771081686628,2.94252381,87.37,87.331,0.49095097]
[1771081686817,2.94252381,87.39,87.341,0.49095097]
[1771081687017,2.94252381,87.39,87.346,0.49095097]
[1771081687426,2.94252381,87.39,87.351,0.49095097]
[1771081687614,16.0,87.412,87.351,0.49095097]
[1771081687813,2.94252381,87.41,87.371,0.49095097]
[1771081688033,0.46973428,87.409,87.371,0.49095097]
[1771081688426,0.46973428,87.409,87.38,2.94252381]
[1771081688737,0.46973428,87.428,87.391,0.49095097]
[1771081689238,0.46973428,87.428,87.39,2.94252381]
[1771081689407,0.46973428,87.428,87.391,11.44282592]
[1771081689916,0.13753813,87.399,87.322,0.49095097]
[1771081690120,0.13753813,87.379,87.341,0.49095097]
[1771081691040,16.0,87.402,87.371,0.49095097]
[1771081691343,40.03339928,87.427,87.35,2.94252381]
[1771081691344,0.13753813,87.419,87.391,0.49095097]
[1771081691517,0.13753813,87.427,87.393,0.49095097]
[1771081693933,0.13753813,87.427,87.385,0.49095097]
[1771081694235,40.03248349,87.429,87.383,11.44375198]
[1771081694236,0.13753813,87.419,87.383,11.44375198]
[1771081694439,0.13753813,87.419,87.384,0.49095097]
[1771081695439,0.13753813,87.416,87.384,0.49095097]
[1771081697633,0.13753813,87.416,87.383,11.44375198]
[1771081702533,0.13753813,87.416,87.385,11.4436116]
[1771081702739,0.13753813,87.416,87.39,2.93404978]
[1771081703040,0.13753813,87.416,87.385,11.93456257]
[1771081703345,0.13753813,87.414,87.385,11.93456257]
[1771081703643,0.13753813,87.414,87.386,0.49095097]
[1771081703834,56.28,87.413,87.391,0.49095097]
[1771081704232,56.41753813,87.413,87.391,0.49095097]
[1771081704442,0.46973428,87.492,87.392,0.49095097]
[1771081704627,0.47082026,87.493,87.451,0.49095097]
[1771081704826,2.93404978,87.48,87.441,0.49095097]
[1771081705247,17.32,87.479,87.441,0.49095097]
[1771081705435,2.93404978,87.47,87.43,2.93404978]
[1771081705743,40.01005967,87.478,87.433,0.49095097]
[1771081705923,5.96451695,87.493,87.432,11.43745996]
[1771081705924,45.68658788,87.554,87.47,2.93404978]
[1771081706122,11.4289692,87.497,87.461,0.49095097]
[1771081706542,0.16780385,87.496,87.461,0.49095097]
[1771081707644,56.6,87.507,87.435,4.61729252]
[1771081707645,18.83354929,87.502,87.471,0.49095097]
[1771081707823,18.83354929,87.502,87.472,11.43222974]
[1771081708134,7.40517857,87.502,87.473,0.49095097]
[1771081709149,7.40517857,87.502,87.48,2.93404978]
[1771081709446,2.93404978,87.5,87.461,0.49095097]
[1771081709928,11.42870204,87.499,87.463,0.49095097]
[1771081710347,3.10185363,87.47,87.435,0.49095097]
[1771081710558,11.42870204,87.499,87.446,78.19483845]
[1771081710559,2.93404978,87.46,87.446,78.19483845]
[1771081710756,30.72,87.459,87.401,11.94151668]
[1771081710928,2.93404978,87.44,87.403,0.5]